bitfinex/quotes_SOLUSD_20250704
["timestamp","ask_amount","ask_price","bid_price","bid_amount"]
[1751638239268,11.4744433,148.23,148.19,11.4744433]
[1751638239974,11.4744433,148.24,148.2,11.4744433]
[1751638241483,11.4744433,148.23,148.19,11.4744433]
[1751638242153,11.4744433,148.2,148.13,1.6174]
[1751638242454,11.4744433,148.2,148.16,11.4744433]
[1751638243079,11.4744433,148.19,148.15,37.4744433]
[1751638243376,11.4744433,148.2,148.16,11.4744433]
[1751638243782,25.06114886,148.22,148.15,49.62464362]
[1751638244095,39.83349123,148.31,148.21,11.4744433]
[1751638244096,13.22258833,148.3,148.21,11.4744433]
[1751638244281,13.22258833,148.3,148.26,11.4744433]
[1751638244282,6.4795,148.3,148.26,11.4744433]
[1751638244585,6.6795,148.34,148.29,11.4744433]
[1751638244881,13.4209238,148.34,148.31,11.4744433]
[1751638245055,6.6795,148.34,148.31,11.4744433]
[1751638245249,39.42094624,148.34,148.24,6.74581759]
[1751638245445,37.4744433,148.31,148.24,6.74581759]
[1751638245689,26.0,148.31,148.25,11.4744433]
[1751638245859,18.64964886,148.3,148.24,11.4744433]
[1751638246176,11.4744433,148.28,148.22,14.64663878]
[1751638246380,11.4744433,148.29,148.25,11.4744433]
[1751638246552,30.12409216,148.3,148.26,11.4744433]
[1751638246753,18.64964886,148.33,148.29,11.4744433]
[1751638247061,0.2,148.34,148.33,6.74172453]
[1751638247274,0.2,148.34,148.33,11.4744433]
[1751638249156,0.2,148.34,148.33,18.21616783]
[1751638249576,0.2,148.37,148.36,26.0]
[1751638249878,1e-08,148.37,148.36,37.4744433]
[1751638250175,0.2,148.38,148.36,37.4744433]
[1751638250482,0.2,148.38,148.37,11.4744433]
[1751638250861,0.2,148.39,148.37,11.4744433]
[1751638251053,0.2,148.39,148.38,11.4744433]
[1751638251256,0.2,148.39,148.34,6.74127005]
[1751638251565,0.2,148.39,148.34,23.59444518]
[1751638251766,0.2,148.39,148.38,11.4744433]
[1751638252870,0.2,148.39,148.34,6.74127005]
[1751638253257,11.4744433,148.38,148.34,18.21571335]
[1751638253458,0.2,148.39,148.35,11.4744433]
[1751638253666,11.6744433,148.39,148.35,11.4744433]
[1751638254267,11.4744433,148.38,148.34,18.21571335]
[1751638254557,0.2,148.39,148.35,11.4744433]
[1751638254979,0.2,148.39,148.34,6.74127005]
[1751638255785,0.2,148.39,148.38,11.4744433]
[1751638256365,0.2,148.39,148.34,23.59444518]
[1751638256684,0.2,148.39,148.37,11.4744433]
[1751638257957,0.2,148.39,148.37,18.21424999]
[1751638258157,0.2,148.39,148.38,11.4744433]
[1751638258382,0.2,148.39,148.36,11.4744433]
[1751638258591,11.4744433,148.38,148.34,18.21571335]
[1751638258770,0.2,148.39,148.33,26.0]
[1751638258771,11.4744433,148.36,148.33,32.74160785]
[1751638259373,11.4744433,148.36,148.33,6.74160785]
[1751638259784,0.2,148.39,148.33,6.74160785]
[1751638259990,11.4744433,148.37,148.33,18.21605115]
[1751638260800,11.4744433,148.35,148.32,6.74204423]
[1751638260974,11.4744433,148.34,148.31,26.0]
[1751638261313,11.4744433,148.35,148.31,44.21694101]
[1751638261472,11.4744433,148.33,148.28,76.20169178]
[1751638261675,51.38936769,148.38,148.21,1.5023]
[1751638261676,11.4744433,148.29,148.21,1.5023]
[1751638261918,11.4744433,148.32,148.21,1.5023]
[1751638261919,11.4744433,148.28,148.23,11.4744433]
[1751638262113,11.4744433,148.28,148.24,11.4744433]
[1751638262290,11.4744433,148.3,148.26,11.4744433]
[1751638262487,11.4744433,148.33,148.29,11.4744433]
[1751638263018,11.4744433,148.33,148.28,11.4744433]
[1751638263230,11.4744433,148.33,148.29,11.4744433]
[1751638263373,11.4744433,148.32,148.28,11.4744433]
[1751638263577,11.4744433,148.32,148.27,6.74445268]
[1751638263806,11.4744433,148.32,148.28,11.4744433]
[1751638264007,11.4744433,148.31,148.27,18.21889598]
[1751638264598,25.38968731,148.37,148.29,11.4744433]
[1751638264923,0.2,148.39,148.33,11.4744433]
[1751638265214,0.2,148.39,148.32,11.4744433]
[1751638265407,11.4744433,148.36,148.32,11.4744433]
[1751638265620,11.4744433,148.35,148.31,6.74263367]
[1751638265905,11.4744433,148.35,148.31,18.21707697]
[1751638266073,11.4744433,148.37,148.32,11.4744433]
[1751638266502,11.4744433,148.35,148.31,18.21707697]
[1751638266703,0.2,148.39,148.33,11.4744433]
[1751638266874,11.4744433,148.37,148.33,11.4744433]
[1751638268099,11.4744433,148.37,148.33,18.21604782]
[1751638268598,11.4744433,148.37,148.33,6.74160452]
[1751638268801,11.4744433,148.38,148.33,18.21604782]
[1751638269000,0.2,148.39,148.36,11.4744433]
[1751638269204,0.2,148.39,148.33,23.59591585]
[1751638269520,0.2,148.39,148.36,11.4744433]
[1751638269702,11.6744433,148.39,148.35,11.4744433]
[1751638269906,11.6744433,148.39,148.33,6.74159792]
[1751638269907,11.4744433,148.37,148.33,6.74159792]
[1751638270087,0.2,148.39,148.33,18.21604122]
[1751638270287,11.4744433,148.38,148.34,11.4744433]
[1751638270906,0.2,148.39,148.32,11.4744433]
[1751638271090,0.2,148.39,148.31,6.74263367]
[1751638271289,0.2,148.39,148.32,11.4744433]
[1751638272016,11.4744433,148.38,148.34,11.4744433]
[1751638272603,0.2,148.39,148.34,11.4744433]
[1751638272915,0.2,148.39,148.36,11.4744433]
[1751638273403,0.2,148.39,148.38,11.4744433]
[1751638274219,0.2,148.39,148.36,11.4744433]
[1751638274393,0.2,148.39,148.34,6.74127005]
[1751638274598,0.2,148.39,148.35,11.4744433]
[1751638274798,11.6744433,148.39,148.35,11.4744433]
[1751638275203,0.2,148.39,148.36,11.4744433]
[1751638275414,0.2,148.39,148.38,11.4744433]
[1751638276121,0.2,148.39,148.38,18.21389605]
[1751638276502,0.2,148.39,148.38,8.33825275]
[1751638276709,0.2,148.39,148.38,19.81269605]
[1751638276922,1e-08,148.39,148.38,19.81269605]
[1751638277990,1e-08,148.39,148.38,8.33825275]
[1751638278195,1e-08,148.39,148.38,19.81269605]
[1751638278617,1e-08,148.39,148.38,8.33825275]
[1751638278921,1e-08,148.39,148.38,45.81269605]
[1751638279221,1e-08,148.39,148.38,19.81269605]
[1751638280120,0.2,148.4,148.38,19.81269605]
[1751638280121,1e-08,148.4,148.39,32.73899858]
[1751638280339,1e-08,148.41,148.39,44.21344188]
[1751638280523,1e-08,148.41,148.4,26.0]
[1751638280706,1e-08,148.41,148.4,37.4744433]
[1751638282035,1e-08,148.41,148.4,26.0]
[1751638282247,1e-08,148.41,148.4,44.21298777]
[1751638284059,1e-08,148.41,148.4,74.33707993]
[1751638284346,1e-08,148.41,148.4,110.35707993]
[1751638285511,1e-08,148.41,148.4,80.23298777]
[1751638285712,1e-08,148.41,148.4,44.21298777]
[1751638287242,11.47444331,148.41,148.36,11.4744433]
[1751638287412,11.4744433,148.4,148.36,11.4744433]
[1751638287833,1e-08,148.41,148.35,7.88]
[1751638288023,11.4744433,148.36,148.35,7.88]
[1751638288228,11.4744433,148.36,148.32,11.4744433]
[1751638288421,11.4744433,148.37,148.32,37.4744433]
[1751638288811,11.4744433,148.37,148.32,26.0]
[1751638289014,18.64964887,148.41,148.33,11.4744433]
[1751638289209,11.4744433,148.35,148.32,26.0]
[1751638289825,11.4744433,148.33,148.29,19.4544433]
[1751638290138,11.4744433,148.31,148.29,7.98]
[1751638290328,11.4744433,148.32,148.29,7.98]
[1751638290513,11.4744433,148.31,148.29,7.98]
[1751638290938,1.5422,148.37,148.29,26.19783997]
[1751638290939,11.4744433,148.33,148.29,26.19783997]
[1751638291138,13.01664331,148.41,148.32,11.4744433]
[1751638291318,11.4744433,148.36,148.32,11.4744433]
[1751638292240,25.38819333,148.4,148.32,18.21633364]
[1751638292546,11.4744433,148.37,148.31,32.74246895]
[1751638292730,11.4744433,148.37,148.32,11.4744433]
[1751638293145,25.38819333,148.4,148.32,26.0]
[1751638293341,11.4744433,148.38,148.33,11.4744433]
[1751638293570,11.4744433,148.37,148.33,11.4744433]
[1751638294256,11.4744433,148.34,148.3,11.4744433]
[1751638294431,11.4744433,148.33,148.29,33.98]
[1751638294635,11.4744433,148.33,148.29,52.19797803]
[1751638294946,6.73899858,148.39,148.3,11.4744433]
[1751638294947,11.4744433,148.34,148.3,11.4744433]
[1751638295819,18.64964886,148.37,148.29,7.98]
[1751638296031,11.4744433,148.3,148.29,0.1]
[1751638296653,11.4744433,148.3,148.18,23.62270885]
[1751638296654,36.39109216,148.3,148.18,27.01087219]
[1751638296952,11.4744433,148.26,148.22,37.4744433]
[1751638297133,11.4744433,148.26,148.21,11.4744433]
[1751638297331,6.267,148.3,148.2,11.4744433]
[1751638297656,11.4744433,148.24,148.23,0.1]
[1751638298160,30.12409216,148.24,148.23,0.1]
[1751638298365,48.34435305,148.24,148.23,0.1]
[1751638298535,18.64964886,148.23,148.15,77.46169178]
[1751638298736,11.4744433,148.16,148.15,77.46169178]
[1751638301350,18.64964886,148.19,148.15,77.46169178]
[1751638301351,25.39780952,148.19,148.15,77.46169178]
[1751638301557,11.4744433,148.16,148.15,77.46169178]
[1751638301848,25.39780952,148.19,148.15,77.46169178]
[1751638302050,11.4744433,148.16,148.15,77.46169178]
[1751638302260,25.39780952,148.19,148.15,77.46169178]
[1751638302430,11.4744433,148.17,148.15,77.46169178]
[1751638304252,18.64964886,148.19,148.15,77.46169178]
[1751638304554,11.4744433,148.16,148.15,77.46169178]
[1751638306365,13.05126517,148.2,148.15,77.46169178]
[1751638306542,6.3036,148.2,148.15,77.46169178]
[1751638306884,11.4744433,148.17,148.15,77.46169178]
[1751638307572,11.4744433,148.18,148.15,76.46169178]
[1751638307763,6.3036,148.2,148.15,76.46169178]
[1751638307954,11.4744433,148.19,148.15,76.46169178]
[1751638308362,11.4744433,148.19,148.15,87.93613508]
[1751638308742,11.4744433,148.18,148.15,76.46169178]
[1751638309351,62.47279216,148.23,148.15,76.46169178]
[1751638309352,32.3487,148.23,148.15,87.93613508]
[1751638309550,11.4744433,148.2,148.15,87.93613508]
[1751638309768,11.4744433,148.19,148.15,87.93613508]
[1751638309970,25.39637669,148.22,148.15,87.93613508]
[1751638310173,11.4744433,148.2,148.16,11.4744433]
[1751638310376,6.74672783,148.22,148.15,76.46169178]
[1751638310377,11.4744433,148.19,148.15,76.46169178]
[1751638310543,18.64964886,148.22,148.15,76.46169178]
[1751638310544,11.4744433,148.16,148.15,76.46169178]
[1751638311647,42.26319628,148.22,148.14,0.1]
[1751638312063,11.4744433,148.15,148.14,0.1]
[1751638313378,11.4744433,148.16,148.14,0.1]
[1751638313558,11.4744433,148.15,148.14,0.1]
[1751638314879,42.88770778,148.15,148.14,0.1]
[1751638315261,30.12409216,148.15,148.14,0.1]
[1751638315652,36.87400778,148.15,148.14,0.1]
[1751638316121,30.12409216,148.15,148.14,0.1]
[1751638316286,18.64964886,148.16,148.14,0.1]
[1751638316452,11.4744433,148.15,148.14,0.1]
[1751638316780,25.39928396,148.16,148.14,0.1]
[1751638316965,11.4744433,148.15,148.14,0.1]
[1751638318875,18.22435892,148.15,148.14,0.1]
[1751638319355,1.6193,148.18,148.14,0.1]
[1751638319557,11.4744433,148.15,148.14,0.1]
[1751638320487,6.0137,148.19,148.14,0.1]
[1751638320784,11.4744433,148.17,148.14,0.1]
[1751638320953,11.4744433,148.15,148.14,0.1]
[1751638321155,30.12409216,148.15,148.14,0.1]
[1751638321553,18.64964886,148.15,148.14,0.1]
[1751638321787,6.7491272,148.17,148.14,0.1]
[1751638321788,11.4744433,148.16,148.14,0.1]
[1751638321984,11.4744433,148.17,148.14,0.1]
[1751638322181,11.4744433,148.16,148.14,0.1]
[1751638322866,11.4744433,148.17,148.14,0.1]
[1751638323497,11.4744433,148.16,148.14,0.1]
[1751638323653,11.4744433,148.15,148.14,0.1]
[1751638324961,18.22435892,148.15,148.14,0.1]
[1751638325368,62.87400778,148.15,148.14,0.1]
[1751638326157,74.34845108,148.15,148.14,0.1]
[1751638326563,62.87400778,148.15,148.14,0.1]
[1751638327275,56.12409216,148.15,148.14,0.1]
[1751638327788,69.25823546,148.15,148.14,0.1]
[1751638328283,57.78379216,148.15,148.14,0.1]
[1751638329198,64.53370778,148.15,148.14,0.1]
[1751638329492,76.00815108,148.15,148.14,0.1]
[1751638329790,18.64964886,148.11,148.08,0.1]
[1751638330093,11.4744433,148.09,148.08,0.1]
[1751638331387,11.4744433,148.12,148.08,11.5744433]
[1751638331587,11.4744433,148.12,148.08,18.32728792]
[1751638331895,11.4744433,148.12,148.08,6.85284462]
[1751638332077,11.4744433,148.13,148.08,18.32728792]
[1751638332262,18.64964886,148.17,148.1,11.4744433]
[1751638332467,11.4744433,148.15,148.09,1.5874]
[1751638332696,11.4744433,148.15,148.1,11.4744433]
[1751638332890,11.4744433,148.15,148.09,1.5874]
[1751638332891,7.6292,148.19,148.11,11.4744433]
[1751638333073,11.4744433,148.18,148.13,11.4744433]
[1751638333266,11.4744433,148.18,148.13,18.22485926]
[1751638333667,6.74777142,148.2,148.13,18.22485926]
[1751638333863,11.4744433,148.17,148.13,18.22485926]
[1751638334286,11.4744433,148.17,148.13,11.4744433]
[1751638334488,6.74777142,148.2,148.12,6.75113404]
[1751638334695,11.4744433,148.16,148.12,6.75113404]
[1751638334882,11.4744433,148.16,148.12,18.22557734]
[1751638335087,11.4744433,148.17,148.12,18.22557734]
[1751638335284,11.4744433,148.16,148.09,1.5874]
[1751638335494,11.4744433,148.14,148.1,11.4744433]
[1751638335883,18.64964886,148.17,148.1,11.4744433]
[1751638336086,11.4744433,148.14,148.1,11.4744433]
[1751638336286,18.64964886,148.17,148.1,11.4744433]
[1751638336287,11.4744433,148.15,148.1,11.4744433]
[1751638336708,25.39868283,148.17,148.11,11.4744433]
[1751638337008,11.4744433,148.17,148.13,11.4744433]
[1751638337401,11.4744433,148.17,148.1,6.75219446]
[1751638337402,36.28,148.21,148.15,11.4744433]
[1751638337589,11.4744433,148.19,148.15,11.4744433]
[1751638337790,11.4744433,148.19,148.1,111.33268061]
[1751638338005,6.94729433,148.21,148.14,11.4744433]
[1751638338213,11.4744433,148.18,148.14,11.4744433]
[1751638338409,11.4744433,148.18,148.13,11.4744433]
[1751638338640,11.4744433,148.18,148.1,23.63268061]
[1751638338809,11.4744433,148.17,148.13,11.4744433]
[1751638339000,6.74786947,148.2,148.1,23.63268061]
[1751638339001,11.4744433,148.15,148.1,18.22663776]
[1751638339310,11.4744433,148.13,148.09,19.81432784]
[1751638339606,11.4744433,148.13,148.09,8.33988454]
[1751638340312,36.08,148.16,148.09,19.81432784]
[1751638340495,11.4744433,148.14,148.09,18.81432784]
[1751638340809,11.4744433,148.14,148.09,7.33988454]
[1751638341155,11.4744433,148.14,148.1,11.4744433]
[1751638341409,47.5544433,148.16,148.11,11.4744433]
[1751638341702,11.4744433,148.16,148.11,11.4744433]
[1751638341901,11.4744433,148.16,148.12,11.4744433]
[1751638342104,11.4744433,148.17,148.12,11.4744433]
[1751638342308,42.82778141,148.2,148.13,11.4744433]
[1751638342309,18.64964886,148.2,148.13,11.4744433]
[1751638342490,11.4744433,148.18,148.13,11.4744433]
[1751638343009,11.4744433,148.17,148.13,18.22511949]
[1751638343207,11.4744433,148.17,148.13,6.75067619]
[1751638344012,6.74809366,148.19,148.13,6.75067619]
[1751638344417,11.4744433,148.17,148.13,6.75067619]
[1751638344620,11.4744433,148.14,148.11,87.7]
[1751638344789,11.4744433,148.14,148.1,6.75219446]
[1751638345107,6.74881176,148.18,148.1,6.75219446]
[1751638345313,11.4744433,148.14,148.1,6.75219446]
[1751638345706,11.4744433,148.12,148.09,88.2874]
[1751638345894,11.4744433,148.11,148.08,0.1]
[1751638346810,11.4744433,148.11,148.08,6.85296241]
[1751638348220,11.4744433,148.1,148.08,0.1]
[1751638348427,11.4744433,148.11,148.08,0.1]
[1751638348998,11.4744433,148.11,148.08,6.85306782]
[1751638349197,11.4744433,148.12,148.08,18.32751112]
[1751638349421,6.74946004,148.16,148.09,11.4744433]
[1751638349422,11.4744433,148.13,148.09,11.4744433]
[1751638349926,11.4744433,148.14,148.1,11.4744433]
[1751638350128,11.4744433,148.13,148.08,111.43583389]
[1751638350315,11.4744433,148.12,148.08,106.02751112]
[1751638350519,11.4744433,148.1,148.08,0.1]
[1751638351335,6.75037127,148.14,148.08,6.85309081]
[1751638351514,11.4744433,148.1,148.08,6.85309081]
[1751638352128,6.75037127,148.14,148.08,0.1]
[1751638352312,11.4744433,148.1,148.08,0.1]
[1751638352833,11.4744433,148.09,148.08,0.1]
[1751638354512,6.75226966,148.1,148.08,0.1]
[1751638354724,11.4744433,148.09,148.08,0.1]
[1751638355810,18.22709371,148.09,148.08,0.1]
[1751638356014,11.4744433,148.09,148.08,0.1]
[1751638356515,18.64964886,148.11,148.08,0.1]
[1751638356712,11.4744433,148.09,148.08,0.1]
[1751638357527,30.12409216,148.09,148.08,0.1]
[1751638358025,11.4744433,148.09,148.08,0.1]
[1751638358851,18.64964886,148.05,148.03,1.4359121]
[1751638359139,30.12409216,148.04,148.03,1.4359121]
[1751638359507,18.64964886,148.04,148.03,1.4359121]
[1751638359710,18.64964886,148.06,148.03,1.4359121]
[1751638359909,11.4744433,148.04,148.03,1.4359121]
[1751638360338,18.64964886,148.06,148.03,1.4359121]
[1751638360728,11.4744433,148.04,148.03,1.4359121]
[1751638361168,18.64964886,148.06,148.03,1.4359121]
[1751638361439,11.4744433,148.04,148.03,1.4359121]
[1751638361653,30.12409216,148.04,148.03,1.4359121]
[1751638361849,11.4744433,148.04,148.03,1.4359121]
[1751638363446,42.8337427,148.07,148.03,1.4359121]
[1751638363648,11.4744433,148.04,148.03,1.4359121]
[1751638364151,18.22937439,148.04,148.03,1.4359121]
[1751638364318,30.12409216,148.04,148.03,1.4359121]
[1751638364517,36.1,148.06,148.03,1.4359121]
[1751638364718,11.4744433,148.04,148.03,1.4359121]
[1751638365757,6.75327052,148.08,148.03,1.4359121]
[1751638365931,25.40291938,148.08,148.03,1.4359121]
[1751638366665,11.4744433,148.05,148.03,1.4359121]
[1751638366826,11.4744433,148.06,148.03,1.4359121]
[1751638367261,11.4744433,148.06,148.03,8.19128128]
[1751638367959,11.4744433,148.06,148.03,1.4359121]
[1751638369345,11.4744433,148.06,148.03,8.191191]
[1751638369747,11.4744433,148.08,148.03,19.6656343]
[1751638369951,11.4744433,148.07,148.03,1.4359121]
[1751638370259,11.4744433,148.08,148.03,8.19115729]
[1751638370466,11.4744433,148.08,148.04,11.4744433]
[1751638370650,11.4744433,148.07,148.03,12.9103554]
[1751638370851,42.28073386,148.11,148.03,19.66566293]
[1751638371037,42.28073386,148.11,148.03,8.19121963]
[1751638371038,11.4744433,148.07,148.03,8.19121963]
[1751638371239,11.4744433,148.07,148.03,1.4359121]
[1751638371564,11.4744433,148.07,148.03,12.9103554]
[1751638371937,11.4744433,148.07,148.03,1.4359121]
[1751638372136,11.4744433,148.07,148.03,8.19126712]
[1751638372355,6.75310289,148.09,148.03,8.19126712]
[1751638373069,11.4744433,148.08,148.03,19.66571042]
[1751638373238,11.4744433,148.08,148.04,11.4744433]
[1751638373640,11.4744433,148.09,148.03,8.19126712]
[1751638373870,11.4744433,148.09,148.04,11.4744433]
[1751638374036,11.4744433,148.09,148.05,6.75447483]
[1751638374785,11.4744433,148.1,148.06,11.4744433]
[1751638374939,11.4744433,148.12,148.07,11.4744433]
[1751638375249,11.4744433,148.13,148.08,11.4744433]
[1751638375452,6.75051213,148.14,148.04,6.7547587]
[1751638375453,11.4744433,148.09,148.04,6.7547587]
[1751638375653,54.72964886,148.12,148.03,1.4359121]
[1751638375967,11.4744433,148.06,148.03,1.4359121]
[1751638376196,11.4744433,148.06,148.03,8.19113516]
[1751638376364,11.4744433,148.06,148.03,1.4359121]
[1751638377141,6.75366018,148.07,148.03,1.4359121]
[1751638377342,11.4744433,148.04,148.03,1.4359121]
[1751638377769,18.64964886,148.07,148.03,1.4359121]
[1751638377946,11.4744433,148.05,148.03,1.4359121]
[1751638378944,11.4744433,148.04,148.03,1.4359121]
[1751638381060,18.22937439,148.04,148.03,1.4359121]
[1751638381262,11.4744433,148.04,148.03,1.4359121]
[1751638381965,18.22937439,148.04,148.03,1.4359121]
[1751638382276,40.044,148.1,148.03,1.4359121]
[1751638382482,18.64964886,148.08,148.03,89.1359121]
[1751638382781,11.4744433,148.04,148.03,89.1359121]
[1751638383659,40.044,148.1,148.03,89.1359121]
[1751638383865,11.4744433,148.06,148.03,89.1359121]
[1751638384059,6.75265041,148.09,148.03,1.4359121]
[1751638384060,18.64964886,148.08,148.03,1.4359121]
[1751638384372,11.4744433,148.04,148.03,1.4359121]
[1751638384757,18.64964886,148.08,148.03,1.4359121]
[1751638384951,11.4744433,148.04,148.03,1.4359121]
[1751638387969,18.64964886,148.06,148.03,1.4359121]
[1751638388180,11.4744433,148.04,148.03,1.4359121]
[1751638388365,18.64964886,148.06,148.03,1.4359121]
[1751638388687,11.4744433,148.05,148.03,1.4359121]
[1751638389775,6.75318167,148.08,148.03,1.4359121]
[1751638389958,6.71247966,148.07,148.03,89.1359121]
[1751638390172,6.71247966,148.06,148.03,89.1359121]
[1751638390367,6.71247966,148.04,148.03,1.4359121]
[1751638391184,25.36212852,148.04,148.03,1.4359121]
[1751638391783,32.11705961,148.04,148.03,1.4359121]
[1751638392363,25.40457995,148.04,148.03,1.4359121]
[1751638392660,32.11705961,148.04,148.03,1.4359121]
[1751638396880,25.40457995,148.04,148.03,1.4359121]
[1751638397070,32.11705961,148.04,148.03,1.4359121]
[1751638402212,6.75493109,148.04,148.03,1.4359121]
[1751638402396,13.46741075,148.04,148.03,1.4359121]
[1751638403001,44.64964886,148.07,148.03,1.4359121]
[1751638403002,6.75457138,148.05,148.03,1.4359121]
[1751638403311,6.71247966,148.04,148.03,1.4359121]
[1751638404407,6.75473555,148.05,148.03,1.4359121]
[1751638404587,6.75410327,148.06,148.03,1.4359121]
[1751638404783,6.75364872,148.07,148.03,1.4359121]
[1751638404989,6.71247966,148.05,148.03,1.4359121]
[1751638405290,6.71247966,148.04,148.03,1.4359121]
[1751638405501,18.64964886,148.06,148.03,1.4359121]
[1751638405702,6.71247966,148.04,148.03,1.4359121]
[1751638405992,18.64964886,148.06,148.03,1.4359121]
[1751638406396,6.71247966,148.04,148.03,1.4359121]
[1751638406597,13.4664983,148.06,148.03,1.4359121]
[1751638406798,6.75401864,148.06,148.03,1.4359121]
[1751638407011,6.71247966,148.04,148.03,1.4359121]
[1751638407211,6.71247966,148.05,148.03,1.4359121]
[1751638407412,6.75401864,148.06,148.03,1.4359121]
[1751638407614,6.71247966,148.05,148.03,1.4359121]
[1751638408120,6.71247966,148.05,148.03,89.1359121]
[1751638408714,42.83370504,148.07,148.03,89.1359121]
[1751638408919,13.4661847,148.07,148.03,95.8912698]
[1751638409098,6.71247966,148.07,148.03,102.60374946]
[1751638409414,13.46611953,148.07,148.03,1.4359121]
[1751638409623,18.64964886,148.06,148.03,1.4359121]
[1751638409808,44.64964886,148.06,148.03,1.4359121]
[1751638410006,18.64964886,148.06,148.03,1.4359121]
[1751638410214,6.71247966,148.04,148.03,1.4359121]
[1751638410410,18.64964886,148.06,148.03,1.4359121]
[1751638410630,6.71247966,148.04,148.03,1.4359121]
[1751638410824,13.46741075,148.04,148.03,1.4359121]
[1751638411238,32.11705961,148.04,148.03,1.4359121]
[1751638411406,68.31705961,148.04,148.03,1.4359121]
[1751638411728,18.64964886,148.03,148.02,0.1]
[1751638412140,42.95493109,148.04,148.02,0.1]
[1751638412440,6.71247966,148.03,148.02,0.1]
[1751638412908,42.5232,148.07,148.02,0.1]
[1751638413239,25.4036675,148.06,148.02,0.1]
[1751638413406,6.71247966,148.03,148.02,0.1]
[1751638413798,18.64964886,148.02,148.0,3.5]
[1751638413955,6.71247966,148.01,148.0,3.5]
[1751638414246,25.36212852,148.01,148.0,3.5]
[1751638414645,44.45384952,148.03,148.0,3.5]
[1751638414646,18.64964886,148.02,148.0,3.5]
[1751638414833,6.7558438,148.02,148.0,3.5]
[1751638415044,6.71247966,148.01,148.0,3.5]
[1751638415341,13.46832346,148.02,148.0,3.5]
[1751638415651,6.75447483,148.05,148.0,3.5]
[1751638416118,6.71247966,148.04,148.0,3.5]
[1751638416949,6.75447483,148.05,148.0,16.96912056]
[1751638417362,13.46695449,148.05,148.0,16.96912056]
[1751638417655,6.75417593,148.06,148.0,10.2566409]
[1751638417953,18.64964886,148.07,148.0,10.2566409]
[1751638417954,6.71247966,148.07,148.02,6.71247966]
[1751638418159,6.75265041,148.09,148.04,6.71247966]
[1751638418341,6.71247966,148.08,148.04,6.71247966]
[1751638418547,6.75265041,148.09,148.01,1.6655]
[1751638418719,13.46513007,148.09,148.01,1.6655]
[1751638418923,13.46587471,148.08,148.03,6.71247966]
[1751638419145,6.71247966,148.07,148.03,6.71247966]
[1751638419554,6.71247966,148.08,148.03,13.46773395]
[1751638419743,26.0,148.12,148.05,6.71247966]
[1751638419944,6.75082697,148.13,148.07,6.71247966]
[1751638420257,0.2,148.14,148.1,6.71247966]
[1751638420432,0.2,148.14,148.08,1.5172]
[1751638420634,0.2,148.14,148.11,6.71247966]
[1751638420821,0.2,148.14,148.08,1.5172]
[1751638420822,6.71247966,148.12,148.08,8.22967966]
[1751638421027,6.71247966,148.11,148.08,1.5172]
[1751638421262,6.71247966,148.09,148.08,1.5172]
[1751638421469,25.36212852,148.12,148.04,8.26517966]
[1751638421470,25.56212852,148.12,148.04,8.26517966]
[1751638421769,25.56212852,148.12,148.05,6.71247966]
[1751638421770,6.71247966,148.1,148.05,6.71247966]
[1751638421967,18.84964886,148.12,148.05,6.71247966]
[1751638422272,6.71247966,148.09,148.04,1.5527]
[1751638422571,51.56212852,148.12,148.04,1.5527]
[1751638422867,6.71247966,148.07,148.04,1.5527]
[1751638423035,16.87985717,148.11,148.04,1.5527]
[1751638423235,16.87985717,148.11,148.0,3.5]
[1751638423236,24.71834886,148.1,148.0,3.5]
[1751638423432,6.71247966,148.05,148.01,1.6501]
[1751638423647,6.71247966,148.04,148.01,1.6501]
[1751638423864,6.71247966,148.03,148.01,1.6501]
[1751638424845,6.71247966,148.02,148.0,3.5]
[1751638425441,6.75537473,148.04,148.0,3.5]
[1751638425442,6.71247966,148.01,148.0,3.5]
[1751638425645,6.75537473,148.04,148.0,3.5]
[1751638425960,6.71247966,148.03,148.0,3.5]
[1751638427445,6.75537473,148.04,148.0,3.5]
[1751638427648,6.71247966,148.03,148.0,3.5]
[1751638428045,6.71247966,148.03,148.0,9.78776098]
[1751638428251,6.71247966,148.03,148.01,6.28776098]
[1751638428751,6.75537473,148.04,148.01,6.28776098]
[1751638428967,6.75537473,148.04,148.02,6.28776098]
[1751638429190,6.71247966,148.03,148.02,6.28776098]
[1751638429362,6.71247966,148.03,148.01,6.28776098]
[1751638429560,6.75537473,148.04,148.0,9.78776098]
[1751638429758,13.46785439,148.04,148.0,9.78776098]
[1751638429980,13.46785439,148.04,148.0,3.5]
[1751638430172,6.71247966,148.04,148.0,16.50024064]
[1751638430363,6.71247966,148.05,148.0,16.54440927]